Cogmind - Beta 12 @@@ ROGUE MODE // 2023.04.05 @ 21:31:32 Player: btmk16 Result: Self-destructed Performance ------------- Evolutions (3) 1500 Regions Visited (5) 1000 Robots Destroyed (101) 505 Value Destroyed (3065) 3065 Prototype IDs (12) 240 Alien Tech Used (0) 0 Bonus (82) 82 TOTAL SCORE: 6392 Bonus ------- High Alert Combat Kills 82 Cogmind --------- Core Integrity 489/700 Matter 17/300 Energy 36/125 System Corruption 18% Temperature Cool (37) Movement Rolling (150) Ox4 Location -7/Factory Parts ------- > --- POWER (1) -------- Light Ion Engine > --- PROPULSION (4) --- Armored Wheel Armored Wheel > --- UTILITY (6) ------ Huge Storage Unit Advanced Visual Processing Unit Improved Sensor Array Improved Signal Interpreter Target Analyzer Hacking Suite > --- WEAPON (2) ------- Improved EM Pulse Cannon Improved EM Pulse Cannon > --- INVENTORY (25) --- Light Treads Advanced Myomer Leg Advanced Myomer Leg Armored Wheel Armored Wheel Armored Wheel High-capacity Storage Unit Improved Sensor Array Salvage Targeting Computer Hardened Medium Armor Plating Improved Light Armor Plating Hacking Suite Hacking Suite Heavy EM Pulse Gun Improved EM Pulse Cannon Improved EM Pulse Cannon Improved EM Pulse Cannon Enhanced Autogun Enhanced Autogun Gauss Rifle Precision Assault Rifle Heavy Missile Launcher Peak State ------------ > --- POWER ------------ Improved Deuterium Engine > --- PROPULSION ------- Light Treads Medium Treads Armored Wheel Armored Wheel > --- UTILITY ---------- Huge Storage Unit Advanced Visual Processing Unit Improved Sensor Array Improved Signal Interpreter Target Analyzer Hacking Suite > --- WEAPON ----------- Centrium Greatsword > --- INVENTORY -------- Light Treads Advanced Myomer Leg Advanced Myomer Leg Armored Wheel Armored Wheel Armored Wheel High-capacity Storage Unit Salvage Targeting Computer Hardened Medium Armor Plating Improved Light Armor Plating Hacking Suite Hacking Suite Heavy EM Pulse Gun Improved EM Pulse Cannon Improved EM Pulse Cannon Improved EM Pulse Cannon Improved EM Pulse Cannon Improved EM Pulse Cannon Enhanced Autogun Enhanced Autogun Enhanced Autogun Gauss Rifle Heavy Missile Launcher Heavy Missile Launcher [Rating: 53] Favorites ----------- Power Ion Engine Engine Ion Engine Propulsion Light Treads Treads Light Treads Wheel Armored Wheel Utility Huge Storage Unit Device Cooling System Storage Huge Storage Unit Processor Advanced Visual Processing Unit Hackware Hacking Suite Protection Light Armor Plating Weapon Enhanced Autogun Energy Gun Medium Laser Energy Cannon Improved EM Pulse Cannon Ballistic Gun Enhanced Autogun Launcher Heavy Missile Launcher Slashing Weapon Centrium Greatsword Build | -11 -10 -10 -9 -8 -7 ------- Run | Jun Mat Min Mat Mat Fac Slots Evolved 6 | . . . 2 2 2 Power . | . . . . . . Propulsion 2 | . . . 1 1 . Utility 4 | . . . 1 1 2 Weapon . | . . . . . . Parts Attached 105 | 6 7 . 27 17 48 Power 9 | 1 . . 4 2 2 Engine 9 | 1 . . 4 2 2 Core . | . . . . . . Reactor . | . . . . . . Propulsion 29 | 2 1 . 10 6 10 Treads 16 | 2 1 . 5 4 4 Leg . | . . . . . . Wheel 13 | . . . 5 2 6 Hover . | . . . . . . Flight . | . . . . . . Utility 20 | 1 3 . 5 2 9 Device 6 | . 2 . . 1 3 Storage 4 | 1 1 . 2 . . Processor 4 | . . . . 1 3 Hackware 1 | . . . . . 1 Protection 5 | . . . 3 . 2 Artifact . | . . . . . . Weapon 47 | 2 3 . 8 7 27 Energy Gun 7 | 1 1 . 4 . 1 Energy Cannon 4 | . . . . . 4 Ballistic Gun 25 | 1 2 . 3 5 14 Ballistic Cannon . | . . . . . . Launcher 8 | . . . 1 1 6 Special Weapon . | . . . . . . Impact Weapon . | . . . . . . Slashing Weapon 3 | . . . . 1 2 Piercing Weapon . | . . . . . . Special Melee Weapon . | . . . . . . Unidentified Prototypes 2 | . . . 1 1 . Corrupted Parts 1 | . . . . . 1 System Corruption 10 | . . . . . 10 Parts Lost 18 | . 1 . 5 3 9 Power 3 | . . . 1 1 1 Propulsion 8 | . . . 2 . 6 Utility 3 | . . . 1 2 . Weapon 4 | . 1 . 1 . 2 Highest Loss Streak 4 | . 1 . 3 2 4 To Critical Strikes . | . . . . . . Average Slot Usage (%) 97 | . 97 100 97 99 94 Engine 10 | . 14 14 10 9 6 Treads 20 | . 28 28 24 11 14 Wheel 10 | . . . 7 23 14 Device 10 | . 12 14 11 9 8 Storage 10 | . 14 14 12 9 7 Processor 9 | . . . . 8 21 Hackware 1 | . . . . . 3 Protection 2 | . . . 8 9 1 Energy Gun 6 | . 8 14 10 6 . Ballistic Gun 12 | . 19 14 11 10 10 Naked Turns . | . . . . . . Heaviest Build 105 | 14 31 30 99 100 105 Greatest Support 60 | 40 40 40 60 48 24 Greatest Overweight (x) 8 | . . . 8 4 8 Average Overweight (x) 1 | . . . . 3 3 Largest Inventory Capacity 25 | 8 15 15 25 25 25 Average Capacity 19 | 6 13 15 15 25 25 Most Carried 25 | 6 15 15 21 25 25 Average Carried 18 | 4 11 13 14 24 23 Final Capacity 25 | 8 15 15 25 25 25 Final Carried 22 | 6 13 15 21 21 22 Class Distribution -------------------- 56% | Mutant 30% | Scavenger-Mutant 8% | Scavenger-Assassin 5% | Scavenger-Skirmisher Dominant Class ---------------- Mutant | -10/Materials Mutant | -10/Mines Mutant | -9/Materials Mutant | -8/Materials Scavenger-Mutant | -7/Factory Resources | -11 -10 -10 -9 -8 -7 ----------- Run | Jun Mat Min Mat Mat Fac Matter Collected 2924 | 245 285 153 639 545 1057 Remotely . | . . . . . . Salvage Created 3710 | . 427 116 864 827 1476 Parts 218 | . 33 6 56 39 84 Haulers Intercepted 8 | . 1 . 2 2 3 Recyclers Shooed 5 | . . . 1 . 4 Parts Field Recycled . | . . . . . . Retrieved Matter . | . . . . . . Parts Self-Destructed . | . . . . . . Prevented . | . . . . . . Kills | -11 -10 -10 -9 -8 -7 ------- Run | Jun Mat Min Mat Mat Fac Combat Hostiles Destroyed 77 | . 11 3 21 11 31 Melee 1 | . . . . . 1 Guns 58 | . 11 3 21 11 12 Cannons 1 | . . . . . 1 AOE 16 | . . . . . 16 Classes Destroyed 13 | . 4 1 3 1 4 Worker 3 | . . . . . 3 Builder 3 | . . . . 1 2 Tunneler 1 | . . 1 . . . Hauler 8 | . 1 . 2 2 3 Recycler 4 | . . . 1 1 2 Operator 3 | . 1 . . 1 1 Watcher 2 | . . . 1 . 1 Swarmer 22 | . 3 1 11 . 7 Grunt 39 | . 8 2 6 7 16 Duelist 1 | . . . . . 1 Sentry 9 | . . . 4 4 1 Specialist 1 | . . . . . 1 Programmer 5 | . . . . . 5 Best Kill Streak 7 | . 3 2 4 3 7 Combat Bots Only 4 | . 3 2 4 3 4 Max Kills in Single Turn 4 | . 1 1 1 1 4 Gunslinging . | . . . . . . Exploded 3 | . . . . . 3 Melee 1 | . . . . . 1 Uniques/NPCs Destroyed . | . . . . . . Combat | -11 -10 -10 -9 -8 -7 -------- Run | Jun Mat Min Mat Mat Fac Damage Taken 3843 | . 486 146 767 734 1710 Core 433 | . 64 45 50 63 211 Absorbed by Shields . | . . . . . . Core Remaining (%) 82 | 100 . 56 87 88 . Volleys Fired 280 | . 53 17 65 62 83 Largest 2 | . 2 2 2 2 2 Hottest 88 | . 70 70 88 81 69 Shots Fired 535 | . 106 34 126 122 147 Gun 507 | . 106 34 123 121 123 Cannon 8 | . . . . . 8 Launcher 20 | . . . 3 1 16 Special . | . . . . . . Kinetic 378 | . 92 17 61 85 123 Thermal 129 | . 14 17 62 36 . Explosive 20 | . . . 3 1 16 Electromagnetic 8 | . . . . . 8 Robot Hit Streak 18 | . 11 18 11 18 12 Robot Miss Streak 6 | . 6 3 2 5 5 Penetration Max . | . . . . . . Secondary Targets 2 | . . . 1 . 1 Max Gunslinging Chain 1 | . . . 1 . 1 Shots Hit Robots 378 | . 74 25 88 89 102 Core Hits 171 | . 23 7 38 32 71 Critical Kills 3 | . . . . . 3 Critical Parts Destroyed 4 | . . 1 . . 3 Critical Strikes 17 | . . 1 3 4 9 Burn 7 | . . . 3 4 . Destroy 7 | . . 1 . . 6 Corrupt 1 | . . . . . 1 Sever 2 | . . . . . 2 Melee Attacks 21 | . . . . 1 20 Impact . | . . . . . . Slashing 21 | . . . . 1 20 Piercing . | . . . . . . Sneak Attacks 4 | . . . . . 4 Combat Hostiles . | . . . . . . Follow-up Attacks . | . . . . . . Damage Inflicted 8314 | . 958 268 1253 1414 4421 Guns 5341 | . 958 268 1253 1414 1448 Cannons 184 | . . . . . 184 Explosions 1885 | . . . . . 1885 Melee 904 | . . . . . 904 Ramming . | . . . . . . Kinetic 3939 | . 837 127 582 945 1448 Thermal 1402 | . 121 141 671 469 . Explosive 1885 | . . . . . 1885 Electromagnetic 184 | . . . . . 184 Impact . | . . . . . . Slashing 904 | . . . . . 904 Piercing . | . . . . . . Highest Corruption 18 | . . . . . 18 Average Corruption 9 | . . . . . 9 Corruption Purged . | . . . . . . Corruption Blocked 2 | . . . . . 2 Effects 64 | . . . . . 64 Message Errors 17 | . . . . . 17 Matter Fused 20 | . . . . . 20 Heat Flow Errors 5 | . . . . . 5 Energy Discharges 4 | . . . . . 4 Parts Rejected 1 | . . . . . 1 Parts Fused 2 | . . . . . 2 Data Loss (minor) 9 | . . . . . 9 Data Loss (major) 4 | . . . . . 4 Misfires 2 | . . . . . 2 Overload Shots . | . . . . . . Overflow Damage 178 | . . . . . 178 Projectiles . | . . . . . . Explosions 17 | . . . . . 17 Melee 161 | . . . . . 161 Knockbacks . | . . . . . . Impact . | . . . . . . Kinetic . | . . . . . . Secondary . | . . . . . . Self-Inflicted Damage 49 | . . . . . 49 Shots 2 | . . . . . 2 Rammed . | . . . . . . Targets Rammed . | . . . . . . Kicked . | . . . . . . Crushed . | . . . . . . Highest Temperature 238 | . 10 20 12 135 238 Average Temperature 64 | . 7 5 11 65 74 Received Heat Transfer 1572 | . 252 87 252 423 558 Effects 1 | . . . . . 1 Energy Bleed 1 | . . . . . 1 Siege Activations . | . . . . . . Robots Corrupted 1 | . . . . . 1 Combat Hostiles 1 | . . . . . 1 Parts Fried . | . . . . . . Impact Corruptions . | . . . . . . Robots Melted . | . . . . . . Combat Hostiles . | . . . . . . Parts Melted 12 | . 2 2 5 3 . Heat Transferred 4107 | . 333 407 1887 1480 . Parts Sabotaged . | . . . . . . Parts Stolen . | . . . . . . Parts Stripped . | . . . . . . Power Chain Reactions . | . . . . . . Missiles Intercepted . | . . . . . . Alert | -11 -10 -10 -9 -8 -7 ------- Run | Jun Mat Min Mat Mat Fac Peak Influence 497 | . 145 90 436 271 497 Initial 120 | . . 20 1 120 106 Average 166 | . 58 26 270 173 249 Maximum Alert Level 2 | . . . 2 1 2 Low Security (%) 58 | 100 100 100 20 64 30 Level 1 36 | . . . 62 35 64 Level 2 4 | . . . 17 . 5 Level 3 . | . . . . . . Level 4 . | . . . . . . Level 5 . | . . . . . . High Security . | . . . . . . Max Security . | . . . . . . Squads Dispatched 21 | . 2 . . 3 16 Investigation 3 | . 1 . . 1 1 Extermination 4 | . . . . . 4 Reinforcement 11 | . 1 . . 2 8 Assault . | . . . . . . Garrison 3 | . . . . . 3 Intercept . | . . . . . . Searches Triggered . | . . . . . . Construction Impeded 3 | . . . . . 3 Haulers Reinforced 3 | . . . . . 3 Active Scanning Responses . | . . . . . . Cargo Convoy Interrupts 1 | . . . . . 1 Stealth | -11 -10 -10 -9 -8 -7 --------- Run | Jun Mat Min Mat Mat Fac Distress Signals 10 | . 3 . 4 3 . Communications Jammed . | . . . . . . Distress Signals . | . . . . . . Times Spotted 123 | . 24 5 32 24 38 Peak Tracking Total 5 | . 5 3 5 5 4 Tactical Retreats 4 | . 1 . 1 2 . Traps | -11 -10 -10 -9 -8 -7 ------- Run | Jun Mat Min Mat Mat Fac Traps Triggered 4 | . . . . . 4 Indirectly . | . . . . . . Trap Hack Attempts . | . . . . . . Triggered . | . . . . . . Disarmed . | . . . . . . Reprogrammed . | . . . . . . Reused . | . . . . . . Traps Extracted . | . . . . . . Installed . | . . . . . . Triggered 1 | . . . . . 1 Machines | -11 -10 -10 -9 -8 -7 ---------- Run | Jun Mat Min Mat Mat Fac Machines Disabled 5 | . . . 1 . 4 Max in Single Turn 2 | . . . 1 . 2 Machines Repaired . | . . . . . . Machines Sabotaged . | . . . . . . Overloaded Fab Kills . | . . . . . . Hacking | -11 -10 -10 -9 -8 -7 --------- Run | Jun Mat Min Mat Mat Fac Machines Accessed 23 | . 6 . 3 5 9 Terminals 19 | . 6 . 3 5 5 Fabricators . | . . . . . . Repair Stations . | . . . . . . Recycling Units 2 | . . . . . 2 Scanalyzers 2 | . . . . . 2 Garrison Access . | . . . . . . Total Hacks 45 | . 10 . 6 13 16 Successful 22 | . 7 . 4 5 6 Failed 23 | . 3 . 2 8 10 Catastrophic 6 | . 1 . . 1 4 Database Lockouts . | . . . . . . Manual 21 | . 8 . 3 5 5 Terminals 38 | . 10 . 6 13 9 Fabricators . | . . . . . . Repair Stations . | . . . . . . Recycling Units 4 | . . . . . 4 Scanalyzers 3 | . . . . . 3 Garrison Access . | . . . . . . Terminal Hacks 16 | . 6 . 3 5 2 Robot Analysis 4 | . 3 . 1 . . Prototype ID Bank 4 | . 1 . . 3 . Emergency Access Points 1 | . . . . 1 . Alert Level 5 | . 2 . 1 . 2 Locate Traps 1 | . . . 1 . . Hauler Manifests 1 | . . . . 1 . Fabricator Hacks . | . . . . . . Repair Station Hacks . | . . . . . . Recycling Unit Hacks . | . . . . . . Scanalyzer 3 | . . . . . 3 Insert Component 2 | . . . . . 2 Analyze 1 | . . . . . 1 Garrison Access Hacks . | . . . . . . Unauthorized Hacks 3 | . 1 . 1 . 1 Terminals 3 | . 1 . 1 . 1 Assimilate 1 | . . . 1 . . Botnet 2 | . 1 . . . 1 Fabricators . | . . . . . . Repair Stations . | . . . . . . Recycling Units . | . . . . . . Scanalyzers . | . . . . . . Garrison Access . | . . . . . . Data Cores Recovered . | . . . . . . Used . | . . . . . . Hacking Detections 18 | . 6 . 1 3 8 Full Trace Events 3 | . 1 . . 1 1 Feedback Events 1 | . . . . . 1 Corruption 1 | . . . . . 1 Feedback Blocked . | . . . . . . Robot Schematics Acquired . | . . . . . . Robots Built . | . . . . . . Authchips . | . . . . . . Time . | . . . . . . Total Robot Build Rating . | . . . . . . Part Schematics Acquired 1 | . . . . . 1 Parts Built . | . . . . . . Authchips . | . . . . . . Time . | . . . . . . Total Part Build Rating . | . . . . . . Parts Repaired . | . . . . . . Time . | . . . . . . Parts Recycled . | . . . . . . Recycled Matter . | . . . . . . Retrieved Matter . | . . . . . . Retrieved Components . | . . . . . . Parts Scanalyzed 1 | . . . . . 1 Part Schematics Acquired 1 | . . . . . 1 Parts Damaged . | . . . . . . Bothacking | -11 -10 -10 -9 -8 -7 ------------ Run | Jun Mat Min Mat Mat Fac Used RIF Installer . | . . . . . . Robots Hacked . | . . . . . . Non-combat . | . . . . . . Combat . | . . . . . . Robot Hacks Applied . | . . . . . . Relay Couplers Released . | . . . . . . Fabnet Peak Effective % . | . . . . . . Robots Rewired . | . . . . . . Allies Hacked . | . . . . . . Hacks Repelled . | . . . . . . Allies | -11 -10 -10 -9 -8 -7 -------- Run | Jun Mat Min Mat Mat Fac Total Allies 2 | . . 1 1 . . Largest Group 1 | . . 1 1 1 . Highest-Rated Group 26 | . . 26 26 10 . Highest-Rated Ally 26 | . . 26 26 10 . Total Orders . | . . . . . . Ally Attacks 4 | . . . 4 . . Total Damage 20 | . . . 20 . . Kills . | . . . . . . Allies Corrupted . | . . . . . . Allies Melted . | . . . . . . Intel | -11 -10 -10 -9 -8 -7 ------- Run | Jun Mat Min Mat Mat Fac Robot Analysis Total 4 | . 3 . 1 . . Derelict Logs Recovered 2 | . . 2 . . . Drone Launches . | . . . . . . Drone Recoveries . | . . . . . . Exploration | -11 -10 -10 -9 -8 -7 ------------- Run | Jun Mat Min Mat Mat Fac Turns Passed 7221 | 135 1331 1114 918 1076 2647 Spaces Moved 3947 | 80 677 665 455 552 1518 Core 6 | 6 . . . . . Treads 1676 | 74 677 665 260 . . Legs . | . . . . . . Wheels 2265 | . . . 195 552 1518 Hover . | . . . . . . Flight . | . . . . . . Fastest Speed 50 | 50 160 160 115 120 135 Average Speed 148 | 151 160 160 144 135 142 Slowest Speed 240 | 160 160 160 240 150 210 Overloaded Moves . | . . . . . . Propulsion Burnouts . | . . . . . . Robots Hopped . | . . . . . . Cave-ins Triggered . | . . . . . . Exploration Rate (%) 52 | 6 97 100 41 44 26 Regions Visited 5 Branch Regions 1 Pre-discovered Areas 1 | . . 1 . . . Known Exits Taken . | . . . . . . Unknown Exits Taken 5 | 1 1 1 1 1 . Scrap Searched 1 | . . 1 . . . Spaces Dug 34 | . . . 10 1 23 Terrain Destroyed 184 | . . . 14 18 152 Melee 10 | . . . . 1 9 Projectile . | . . . . . . AOE 174 | . . . 14 17 143 Terrain Rammed . | . . . . . . Walls Destroyed . | . . . . . . Machines Disabled . | . . . . . . Actions | -11 -10 -10 -9 -8 -7 --------- Run | Jun Mat Min Mat Mat Fac Total 4825 | 91 822 687 595 784 1846 Wait 350 | . 64 . 24 114 148 Move 3942 | 79 676 664 454 551 1518 Hop . | . . . . . . Pick Up 62 | 6 12 4 9 17 14 Fast Attach 30 | 6 2 . 8 5 9 Attach 23 | . 1 . 6 3 13 Detach 8 | . 1 . 3 . 4 Swap 52 | . 4 . 13 9 26 Drop 57 | . 9 2 13 22 11 Fire 280 | . 53 17 65 62 83 Melee 21 | . . . . 1 20 Ram . | . . . . . . Kick . | . . . . . . Crush . | . . . . . . Escape Stasis . | . . . . . . Rewire . | . . . . . . Trap . | . . . . . . Miscellaneous . | . . . . . . Route ------- -11/Junkyard -10/Materials (discovered 5 exits: *Mat x3 / [*Min x2]) -10/Mines (discovered 2 exits: *Mat x2) -9/Materials -8/Materials (discovered 3 exits: *Fac x2 / Sto) -7/Factory (discovered 1 exit: [*Fac]) History --------- Turn | Location | Event 6 | -11/Junkyard | Discovered new exit (range 15) 136 | -11/Junkyard | Entered Materials 136 | -10/Materials | Discovered new exit (range 15) 301 | -10/Materials | Build established: Mutant 561 | -10/Materials | Discovered new exit (range 8) 908 | -10/Materials | Discovered new exit (range 15) 1183 | -10/Materials | Discovered new exit (range 5) 1342 | -10/Materials | Discovered new exit (range 15) 1467 | -10/Materials | Entered Mines 1569 | -10/Mines | Learned Materials emergency access door positions 1718 | -10/Mines | Discovered new exit (range 11) 1766 | -10/Mines | Escorted by a lone wolf Derelict 1786 | -10/Mines | Learned location of Storage (-8) 2408 | -10/Mines | Received a Rocket Launcher from a helpful Derelict 2538 | -10/Mines | Discovered new exit (range 8) 2581 | -10/Mines | Entered Materials 2581 | -9/Materials | Accompanied by 1 ally 2581 | -9/Materials | Evolved 2 slots: Propulsion x1, Utility x1 2897 | -9/Materials | Lost 3 parts (1p1n1u) 3335 | -9/Materials | Build established: Scavenger-Mutant 3375 | -9/Materials | Discovered new exit (range 6) 3499 | -9/Materials | Entered another Materials area 3499 | -8/Materials | Accompanied by 1 ally 3499 | -8/Materials | Evolved 2 slots: Propulsion x1, Utility x1 3500 | -8/Materials | Identified exit to Storage 3748 | -8/Materials | Build established: Mutant 3766 | -8/Materials | Discovered new exit (range 12) 4173 | -8/Materials | Build established: Scavenger-Mutant 4481 | -8/Materials | Discovered new exit (range 14) 4575 | -8/Materials | Entered Factory 4575 | -7/Factory | Evolved 2 slots: Utility x2 4575 | -7/Factory | Discovered new exit (range 8) 4595 | -7/Factory | Build established: Mutant 5171 | -7/Factory | Build established: Scavenger-Mutant 5275 | -7/Factory | Cargo convoy interrupted 5403 | -7/Factory | Found Corrupted Prototype Slashing Weapon 5889 | -7/Factory | Identified Centrium Greatsword 6276 | -7/Factory | System corruption reached 10% 6396 | -7/Factory | Garrison activated, responded to threat 6575 | -7/Factory | Build established: Scavenger-Assassin 7222 | -7/Factory | Self-destructed Last Messages --------------- 07207_ Acquired 1 matter. 07207_ U-05 Engineer lays Concrete. 07208_ U-05 Engineer builds a Wall. 07209_ K-01 Serf collects debris. 07209_ U-05 Engineer lays Concrete. 07210_ Acquired 18 matter. 07210_ U-05 Engineer lays Concrete. 07212_ G-47 Trooper destroyed. 07212_ U-05 Engineer lays Concrete. 07213_ Acquired Lgt. Ion Engine. 07213_ K-01 Serf collects debris. 07213_ U-05 Engineer lays Concrete. 07216_ K-01 Serf collects debris. 07216_ U-05 Engineer lays Concrete. 07218_ The unstable cave ceiling collapses. 07218_ U-05 Engineer lays Concrete. 07219_ K-01 Serf collects debris. 07219_ U-05 Engineer lays Concrete. 07222_ K-01 Serf collects debris. 07222_ U-05 Engineer lays Concrete. Map ----- +----------------------------------------------------+ | ???????????????# # ######## # | | ???????????????# # #??????# # | | ???????????????# # ########+##### | | ???????????????# # # "" # | | ???????????????############## # ! ""S # | | ????????????????????????????# # "" # | | ????????????????????????????# + # | | ????????????????????????????# # # | | ????????????????????????????# # / | | ????????????????????????????# # # | | ????????????################# # """ # | | ??????????? ^ # """"" # | | ??????????? ^ # """"" # | | ??????????? ^ # + | | ??????????? # # | | ??????????? ###########/## | | ??????????# g! #?????????? #? | | ??????????? =g % #???????????#? | | ???????????? ####+####g*!#######?????????? #? | | ????????????? ?# %k ###????????????? #? | | ???????????????k??# r %! ##?########??? #? | | ??????????????????# ! ### #??? #? | | ??????????????????# = # """" #??? #? | | ??????????????????# #### """" #??? #? | | ??????????????????# % #### """" #??? #? | | ??????????????????# @ ## """" #??? #? | | ??????????????????# *t # #??? #? | | ??????????????????# uu%u* #####+######## #? | | ??????????????????# k % #? | | ??????????????????# # ## #? | | ??????????????????# # """"" ## | | ??????????????????####+## # #####+## ""T" | | ?????????????????????# ##### ? # | | ?????????????????????# #???# """"""" # | | ?????????????????????# #???# """"""" + | | ?????????????????????# #???# """"""" # ! % | | ?????????????????????# #???# """"""" # # ! | | ?????????????????????# #???# # # | | ?????????????????????# #???#= ? ! # ## | | ?????????????????????# #???# ??! =#+##+## # | | ?????????????????????#%#????###?????##? # ## | | ?????????????????????#!#?????????????# [[[ # ### | | ?????????##########+## #?????????????# [[[ + | | ?????????+ ^ ^ #?????????????# [[ # | | ?????????# ^ [ #?##??????????# # | | ?????????# """" #T ####???????# # ? | | ?????????+ """" #???????######## | | ?????????# """" " " #??????????????# | | ????##+### "T" #?????????????? !! | | ????# """ #??? ?????????? != | +----------------------------------------------------+ Best States ------------- Heat Dissipation 53 Energy Generation 16 Energy Capacity 380 Matter Stores 300 Matter Capacity 300 Sight Range 20 Robot Scan Range 15 Terrain Scan Density 10 Armor Coverage 225 Evasion (%) 40 Targeting Accuracy 6 Target Analysis 5 Recoil Reduction 3 Offensive Hacking 10 Item Schematics ----------------- Centrium Greatsword | -7/Factory | Scanalyzed Robot Schematics ------------------ None Fabricated ------------ Nothing Alien Tech Used ----------------- None Achievements -------------- None Challenges ------------ None Game ------ Seed MobileInsulationSource Manual? 0 Play Time 00:55:13 Cumulative 621.4 hours Start 2023.04.05 @ 15:05:30 End 2023.04.05 @ 21:31:32 Sessions 1 Manual Loads 0 Difficulty Rogue Special Mode None Game No. 640 Rogue 639 Adventurer 0 Explorer 1 Win Type - Total 30 Types 21/0/6/3/0/0/0/0/0 Lore% 84 Gallery% 92 Achievement% 78 Wizard Run 0 Options --------- ASCII 0 Keyboard 1 Movement Vi Keybinds 0 Fullscreen 1 Font 18/SmallcapsGlow Map View 76x50 Tactical HUD 1 Map Filters NONE Filters NONE Steam 1 RUN: 9c90eb7b-1409-4435-adea-8f04326034ff